[Event "Titled Tuesday Blitz December 27 Early 2022"]
[White "Bilan, Danila"]
[Black "Quinones Garcia, Santiago"]
[WhiteFideId "24161918"]
[BlackFideId "4408497"]
[WhiteElo "2303"]
[BlackElo "2248"]
[Result "1-0"]
[Round "09"]
[TimeControl "180+2"]
[Date "2022.12.27"]
[WhiteClock "0:00:07"]
[BlackClock "0:00:19"]

1. d4 {[%clk 0:02:58]}  Nf6 {[%clk 0:02:59]} 2. Nf3 {[%clk 0:02:58]}  g6 {[%clk 0:02:59]} 3. Bg5 {[%clk 0:02:57]}  Bg7 {[%clk 0:02:59]} 4. c3 {[%clk 0:02:56]}  O-O {[%clk 0:02:58]} 5. Nbd2 {[%clk 0:02:56]}  d5 {[%clk 0:02:58]} 6. e3 {[%clk 0:02:56]}  c6 {[%clk 0:02:59]} 7. Bd3 {[%clk 0:02:56]}  Nbd7 {[%clk 0:02:58]} 8. O-O {[%clk 0:02:55]}  b6 {[%clk 0:02:58]} 9. e4 {[%clk 0:02:55]}  dxe4 {[%clk 0:02:58]} 10. Nxe4 {[%clk 0:02:56]}  Bb7 {[%clk 0:02:57]} 11. Re1 {[%clk 0:02:48]}  Re8 {[%clk 0:02:55]} 12. Qa4 {[%clk 0:02:09]}  Qc7 {[%clk 0:02:52]} 13. Rad1 {[%clk 0:01:53]}  c5 {[%clk 0:02:51]} 14. Nxf6+ {[%clk 0:01:48]}  Nxf6 {[%clk 0:02:48]} 15. Ne5 {[%clk 0:01:31]}  cxd4 {[%clk 0:02:45]} 16. cxd4 {[%clk 0:01:24]}  Qd6 {[%clk 0:02:30]} 17. Bc4 {[%clk 0:01:14]}  Bd5 {[%clk 0:02:28]} 18. Bf4 {[%clk 0:01:04]}  Bxc4 {[%clk 0:02:07]} 19. Qxc4 {[%clk 0:01:02]}  Qd5 {[%clk 0:02:04]} 20. Rc1 {[%clk 0:00:51]}  Rad8 {[%clk 0:01:54]} 21. Nc6 {[%clk 0:00:41]}  Rd7 {[%clk 0:01:50]} 22. Be5 {[%clk 0:00:38]}  Qxc4 {[%clk 0:01:43]} 23. Rxc4 {[%clk 0:00:39]}  Nd5 {[%clk 0:01:43]} 24. a4 {[%clk 0:00:31]}  Rc8 {[%clk 0:01:37]} 25. Rec1 {[%clk 0:00:26]}  Bxe5 {[%clk 0:01:29]} 26. dxe5 {[%clk 0:00:23]}  Kg7 {[%clk 0:01:23]} 27. g3 {[%clk 0:00:22]}  Rdc7 {[%clk 0:01:19]} 28. b3 {[%clk 0:00:20]}  a6 {[%clk 0:01:13]} 29. f4 {[%clk 0:00:16]}  e6 {[%clk 0:01:11]} 30. Kf2 {[%clk 0:00:16]}  b5 {[%clk 0:01:10]} 31. axb5 {[%clk 0:00:16]}  axb5 {[%clk 0:01:11]} 32. R4c2 {[%clk 0:00:16]}  Ra8 {[%clk 0:00:57]} 33. Nd4 {[%clk 0:00:15]}  Rca7 {[%clk 0:00:52]} 34. Nxb5 {[%clk 0:00:15]}  Rb7 {[%clk 0:00:49]} 35. Rc5 {[%clk 0:00:14]}  Ra2+ {[%clk 0:00:47]} 36. Kf3 {[%clk 0:00:09]}  Nb4 {[%clk 0:00:41]} 37. Nd6 {[%clk 0:00:06]}  Rba7 {[%clk 0:00:31]} 38. Rc7 {[%clk 0:00:06]}  R7a3 {[%clk 0:00:31]} 39. Rxf7+ {[%clk 0:00:06]}  Kh6 {[%clk 0:00:31]} 40. Rcc7 {[%clk 0:00:06]}  Rxb3+ {[%clk 0:00:29]} 41. Kg4 {[%clk 0:00:06]}  g5 {[%clk 0:00:19]} 42. Rxh7+ {[%clk 0:00:06]}  Kg6 {[%clk 0:00:19]} 43. Rcg7# {[%clk 0:00:07]} 1-0


[Site "https://www.chess.com"]

[Event "Titled Tuesday Blitz December 27 Early 2022"]
[White "Bilych, Olexiy"]
[Black "Sai Krishna G V"]
[WhiteFideId "14156504"]
[BlackFideId "5028280"]
[WhiteElo "2441"]
[BlackElo "2384"]
[Result "1-0"]
[Round "09"]
[TimeControl "180+2"]
[Date "2022.12.27"]
[WhiteClock "0:00:34"]
[BlackClock "0:00:11"]

1. d4 {[%clk 0:03:00]}  Nf6 {[%clk 0:02:59]} 2. c4 {[%clk 0:03:00]}  g6 {[%clk 0:02:59]} 3. Nc3 {[%clk 0:03:00]}  Bg7 {[%clk 0:03:00]} 4. e4 {[%clk 0:03:00]}  d6 {[%clk 0:03:00]} 5. Nf3 {[%clk 0:02:59]}  O-O {[%clk 0:03:01]} 6. Be2 {[%clk 0:03:00]}  e5 {[%clk 0:03:01]} 7. O-O {[%clk 0:03:00]}  Nc6 {[%clk 0:03:01]} 8. d5 {[%clk 0:03:00]}  Ne7 {[%clk 0:03:02]} 9. b4 {[%clk 0:02:59]}  Nh5 {[%clk 0:03:02]} 10. a4 {[%clk 0:02:57]}  f5 {[%clk 0:02:57]} 11. Nd2 {[%clk 0:02:55]}  Nf4 {[%clk 0:02:56]} 12. c5 {[%clk 0:02:55]}  g5 {[%clk 0:02:51]} 13. a5 {[%clk 0:02:54]}  Rf6 {[%clk 0:02:43]} 14. Nc4 {[%clk 0:02:52]}  Nxe2+ {[%clk 0:02:23]} 15. Qxe2 {[%clk 0:02:53]}  f4 {[%clk 0:02:24]} 16. f3 {[%clk 0:02:46]}  Qe8 {[%clk 0:02:19]} 17. cxd6 {[%clk 0:02:36]}  cxd6 {[%clk 0:02:20]} 18. b5 {[%clk 0:02:36]}  Rh6 {[%clk 0:02:13]} 19. Ba3 {[%clk 0:02:27]}  Qh5 {[%clk 0:02:09]} 20. h3 {[%clk 0:02:26]}  Ng6 {[%clk 0:01:48]} 21. Nxd6 {[%clk 0:02:21]}  Bf8 {[%clk 0:01:23]} 22. Nxc8 {[%clk 0:02:12]}  Rxc8 {[%clk 0:01:24]} 23. Bxf8 {[%clk 0:02:06]}  Kxf8 {[%clk 0:01:23]} 24. Rac1 {[%clk 0:02:03]}  Nh4 {[%clk 0:01:21]} 25. Na4 {[%clk 0:01:49]}  Qe8 {[%clk 0:01:19]} 26. Nc5 {[%clk 0:01:46]}  b6 {[%clk 0:00:47]} 27. Ne6+ {[%clk 0:01:43]}  Rxe6 {[%clk 0:00:45]} 28. dxe6 {[%clk 0:01:42]}  Qxe6 {[%clk 0:00:45]} 29. axb6 {[%clk 0:01:25]}  axb6 {[%clk 0:00:40]} 30. Qd2 {[%clk 0:01:21]}  Kg7 {[%clk 0:00:31]} 31. Qd5 {[%clk 0:01:11]}  Qxd5 {[%clk 0:00:31]} 32. exd5 {[%clk 0:01:12]}  Rd8 {[%clk 0:00:30]} 33. Rfd1 {[%clk 0:01:11]}  Nf5 {[%clk 0:00:30]} 34. Rc6 {[%clk 0:01:08]}  Nd4 {[%clk 0:00:29]} 35. Rxb6 {[%clk 0:01:06]}  Rxd5 {[%clk 0:00:29]} 36. Rb1 {[%clk 0:01:03]}  Ne2+ {[%clk 0:00:28]} 37. Kf2 {[%clk 0:01:02]}  Ng3 {[%clk 0:00:25]} 38. Rc6 {[%clk 0:00:56]}  Rd2+ {[%clk 0:00:22]} 39. Kg1 {[%clk 0:00:57]}  e4 {[%clk 0:00:16]} 40. fxe4 {[%clk 0:00:55]}  Ne2+ {[%clk 0:00:14]} 41. Kh2 {[%clk 0:00:42]}  Nd4 {[%clk 0:00:14]} 42. Rc4 {[%clk 0:00:38]}  f3 {[%clk 0:00:14]} 43. Rxd4 {[%clk 0:00:37]}  Rxd4 {[%clk 0:00:13]} 44. gxf3 {[%clk 0:00:34]}  Rd7 {[%clk 0:00:11]} 45. b6 {[%clk 0:00:33]}  Rb7 {[%clk 0:00:11]} 46. Kg3 {[%clk 0:00:34]}  Kf6 {[%clk 0:00:11]} 47. Rb5 {[%clk 0:00:34]}  h6 {[%clk 0:00:11]} 48. h4 {[%clk 0:00:34]}  gxh4+ {[%clk 0:00:08]} 49. Kxh4 {[%clk 0:00:35]}  Ke6 {[%clk 0:00:09]} 50. Kh5 {[%clk 0:00:35]}  Kd6 {[%clk 0:00:10]} 51. Kxh6 {[%clk 0:00:35]}  Kc6 {[%clk 0:00:10]} 52. Rb1 {[%clk 0:00:35]}  Rb8 {[%clk 0:00:11]} 53. b7 {[%clk 0:00:34]}  Kc7 {[%clk 0:00:11]} 54. f4 {[%clk 0:00:34]} 1-0


[Site "https://www.chess.com"]

[Event "Titled Tuesday Blitz December 27 Early 2022"]
[White "Bok, Benjamin"]
[Black "Martinez Alcantara, Jose Eduardo"]
[WhiteFideId "1017063"]
[BlackFideId "3805662"]
[WhiteElo "2607"]
[BlackElo "2619"]
[Result "1/2-1/2"]
[Round "09"]
[TimeControl "180+2"]
[Date "2022.12.27"]
[WhiteClock "0:03:01"]
[BlackClock "0:02:44"]

1. d4 {[%clk 0:03:00]}  Nf6 {[%clk 0:02:56]} 2. c4 {[%clk 0:03:00]}  e6 {[%clk 0:02:57]} 3. Nc3 {[%clk 0:03:00]}  Bb4 {[%clk 0:02:57]} 4. Qc2 {[%clk 0:03:00]}  d5 {[%clk 0:02:57]} 5. a3 {[%clk 0:03:00]}  Bxc3+ {[%clk 0:02:56]} 6. Qxc3 {[%clk 0:03:01]}  O-O {[%clk 0:02:49]} 7. Bg5 {[%clk 0:03:00]}  h6 {[%clk 0:02:46]} 8. Bxf6 {[%clk 0:03:00]}  Qxf6 {[%clk 0:02:47]} 9. Nf3 {[%clk 0:03:00]}  dxc4 {[%clk 0:02:46]} 10. Qxc4 {[%clk 0:03:01]}  Nc6 {[%clk 0:02:46]} 11. Qc3 {[%clk 0:03:01]}  Re8 {[%clk 0:02:44]} 12. Rd1 {[%clk 0:03:01]} 1/2-1/2


[Site "https://www.chess.com"]

[Event "Titled Tuesday Blitz December 27 Early 2022"]
[White "Cardona, Liulia"]
[Black "Omariev, Maksim"]
[WhiteFideId "3505189"]
[BlackFideId "4193423"]
[WhiteElo "2115"]
[BlackElo "2304"]
[Result "1-0"]
[Round "09"]
[TimeControl "180+2"]
[Date "2022.12.27"]
[WhiteClock "0:00:22"]
[BlackClock "0:00:02"]

1. e4 {[%clk 0:03:00]}  c5 {[%clk 0:02:55]} 2. Nf3 {[%clk 0:03:00]}  d6 {[%clk 0:02:56]} 3. d4 {[%clk 0:03:00]}  cxd4 {[%clk 0:02:57]} 4. Nxd4 {[%clk 0:03:01]}  Nf6 {[%clk 0:02:58]} 5. Nc3 {[%clk 0:03:01]}  a6 {[%clk 0:02:58]} 6. Bc4 {[%clk 0:03:01]}  e6 {[%clk 0:02:59]} 7. Bb3 {[%clk 0:03:01]}  Nbd7 {[%clk 0:02:59]} 8. Be3 {[%clk 0:03:00]}  Nc5 {[%clk 0:03:00]} 9. f3 {[%clk 0:03:01]}  b5 {[%clk 0:02:58]} 10. Qe2 {[%clk 0:02:59]}  Bb7 {[%clk 0:02:59]} 11. O-O-O {[%clk 0:02:58]}  Be7 {[%clk 0:02:54]} 12. g4 {[%clk 0:02:57]}  Nfd7 {[%clk 0:02:42]} 13. Rhg1 {[%clk 0:02:47]}  Nb6 {[%clk 0:02:27]} 14. Ndxb5 {[%clk 0:01:59]}  Nxb3+ {[%clk 0:01:20]} 15. axb3 {[%clk 0:01:58]}  O-O {[%clk 0:01:21]} 16. Nd4 {[%clk 0:01:55]}  a5 {[%clk 0:01:14]} 17. Qb5 {[%clk 0:01:33]}  Ra6 {[%clk 0:00:32]} 18. Qh5 {[%clk 0:01:18]}  a4 {[%clk 0:00:21]} 19. Rg3 {[%clk 0:01:09]}  g6 {[%clk 0:00:16]} 20. Qh6 {[%clk 0:01:05]}  Re8 {[%clk 0:00:03]} 21. Rh3 {[%clk 0:01:00]}  Bf6 {[%clk 0:00:03]} 22. Ndb5 {[%clk 0:00:40]}  axb3 {[%clk 0:00:03]} 23. Nxd6 {[%clk 0:00:24]}  Ra1+ {[%clk 0:00:02]} 24. Nb1 {[%clk 0:00:24]}  bxc2 {[%clk 0:00:02]} 25. Qxh7+ {[%clk 0:00:22]}  Kf8 {[%clk 0:00:02]} 26. Qxf7# {[%clk 0:00:22]} 1-0


[Site "https://www.chess.com"]

[Event "Titled Tuesday Blitz December 27 Early 2022"]
[White "Chigaev, Maksim"]
[Black "Movahed, Sina"]
[WhiteFideId "4108116"]
[BlackFideId "42520835"]
[WhiteElo "2628"]
[BlackElo "2340"]
[Result "0-1"]
[Round "09"]
[TimeControl "180+2"]
[Date "2022.12.27"]
[WhiteClock "0:00:01"]
[BlackClock "0:00:43"]

1. e4 {[%clk 0:03:00]}  c5 {[%clk 0:02:59]} 2. Nf3 {[%clk 0:03:01]}  d6 {[%clk 0:02:59]} 3. c3 {[%clk 0:03:01]}  Nf6 {[%clk 0:02:59]} 4. g3 {[%clk 0:03:02]}  g6 {[%clk 0:02:59]} 5. Bg2 {[%clk 0:03:02]}  Bg7 {[%clk 0:03:00]} 6. O-O {[%clk 0:03:03]}  O-O {[%clk 0:03:00]} 7. Re1 {[%clk 0:03:03]}  e5 {[%clk 0:03:00]} 8. a4 {[%clk 0:03:03]}  Nc6 {[%clk 0:03:00]} 9. d3 {[%clk 0:03:03]}  Re8 {[%clk 0:03:00]} 10. Na3 {[%clk 0:03:02]}  h6 {[%clk 0:02:57]} 11. Nc4 {[%clk 0:03:03]}  b6 {[%clk 0:02:57]} 12. Nfd2 {[%clk 0:02:59]}  Bb7 {[%clk 0:02:57]} 13. Ne3 {[%clk 0:02:52]}  Ne7 {[%clk 0:02:55]} 14. a5 {[%clk 0:02:48]}  d5 {[%clk 0:02:47]} 15. a6 {[%clk 0:02:43]}  Bc6 {[%clk 0:02:46]} 16. c4 {[%clk 0:02:43]}  dxe4 {[%clk 0:02:36]} 17. dxe4 {[%clk 0:02:40]}  Bd7 {[%clk 0:02:36]} 18. Nb1 {[%clk 0:02:32]}  Nc6 {[%clk 0:02:36]} 19. Nc3 {[%clk 0:02:32]}  Nd4 {[%clk 0:02:36]} 20. Ncd5 {[%clk 0:02:33]}  Be6 {[%clk 0:02:33]} 21. Bd2 {[%clk 0:02:30]}  Rb8 {[%clk 0:02:32]} 22. b4 {[%clk 0:02:23]}  cxb4 {[%clk 0:02:24]} 23. Bxb4 {[%clk 0:02:24]}  Nd7 {[%clk 0:02:22]} 24. Nc3 {[%clk 0:01:59]}  Nc5 {[%clk 0:02:14]} 25. Ned5 {[%clk 0:01:59]}  h5 {[%clk 0:02:12]} 26. h3 {[%clk 0:01:51]}  Rc8 {[%clk 0:02:09]} 27. Rc1 {[%clk 0:01:12]}  h4 {[%clk 0:02:04]} 28. Nb5 {[%clk 0:01:00]}  hxg3 {[%clk 0:01:59]} 29. fxg3 {[%clk 0:00:59]}  Qd7 {[%clk 0:01:58]} 30. Bxc5 {[%clk 0:00:46]}  Rxc5 {[%clk 0:01:54]} 31. Nxd4 {[%clk 0:00:46]}  exd4 {[%clk 0:01:52]} 32. Kh2 {[%clk 0:00:46]}  Be5 {[%clk 0:01:50]} 33. Qf3 {[%clk 0:00:41]}  Kg7 {[%clk 0:01:50]} 34. Kg1 {[%clk 0:00:30]}  Bxh3 {[%clk 0:01:46]} 35. Rf1 {[%clk 0:00:23]}  Rh8 {[%clk 0:01:33]} 36. Nf4 {[%clk 0:00:11]}  Bg4 {[%clk 0:01:24]} 37. Qd3 {[%clk 0:00:11]}  g5 {[%clk 0:01:14]} 38. Nd5 {[%clk 0:00:11]}  Qd6 {[%clk 0:01:10]} 39. Rf5 {[%clk 0:00:06]}  Bxf5 {[%clk 0:01:09]} 40. exf5 {[%clk 0:00:06]}  f6 {[%clk 0:01:08]} 41. Re1 {[%clk 0:00:04]}  Ra5 {[%clk 0:01:07]} 42. Qf3 {[%clk 0:00:03]}  d3 {[%clk 0:01:07]} 43. Ne3 {[%clk 0:00:03]}  Rd8 {[%clk 0:00:56]} 44. Qh5 {[%clk 0:00:03]}  d2 {[%clk 0:00:48]} 45. Qg6+ {[%clk 0:00:03]}  Kf8 {[%clk 0:00:48]} 46. Qh6+ {[%clk 0:00:03]}  Ke8 {[%clk 0:00:48]} 47. Rd1 {[%clk 0:00:02]}  Ra1 {[%clk 0:00:44]} 48. Kf2 {[%clk 0:00:01]}  Rxd1 {[%clk 0:00:43]} 49. Qh4 {[%clk 0:00:01]} 0-1


[Site "https://www.chess.com"]

[Event "Titled Tuesday Blitz December 27 Early 2022"]
[White "Demin, Vladimir"]
[Black "Bachmann, Axel"]
[WhiteFideId "4167457"]
[BlackFideId "3700488"]
[WhiteElo "2430"]
[BlackElo "2604"]
[Result "0-1"]
[Round "09"]
[TimeControl "180+2"]
[Date "2022.12.27"]
[WhiteClock "0:00:35"]
[BlackClock "0:00:05"]

1. d4 {[%clk 0:03:00]}  Nf6 {[%clk 0:02:53]} 2. Nc3 {[%clk 0:03:00]}  d5 {[%clk 0:02:43]} 3. Bf4 {[%clk 0:03:00]}  a6 {[%clk 0:02:42]} 4. e3 {[%clk 0:03:00]}  b5 {[%clk 0:02:19]} 5. Nf3 {[%clk 0:02:36]}  e6 {[%clk 0:01:54]} 6. Ne5 {[%clk 0:02:34]}  Bb7 {[%clk 0:01:53]} 7. g4 {[%clk 0:02:33]}  c5 {[%clk 0:01:47]} 8. g5 {[%clk 0:02:26]}  Nfd7 {[%clk 0:01:47]} 9. Bg2 {[%clk 0:02:24]}  Nxe5 {[%clk 0:01:43]} 10. dxe5 {[%clk 0:02:23]}  Nd7 {[%clk 0:01:29]} 11. h4 {[%clk 0:02:16]}  Be7 {[%clk 0:01:29]} 12. Bg3 {[%clk 0:02:12]}  h6 {[%clk 0:01:17]} 13. f4 {[%clk 0:02:10]}  hxg5 {[%clk 0:01:15]} 14. hxg5 {[%clk 0:02:11]}  Rxh1+ {[%clk 0:01:16]} 15. Bxh1 {[%clk 0:02:12]}  g6 {[%clk 0:01:10]} 16. Qd2 {[%clk 0:02:10]}  Qa5 {[%clk 0:01:09]} 17. Ne2 {[%clk 0:01:54]}  b4 {[%clk 0:01:08]} 18. Bf3 {[%clk 0:01:50]}  O-O-O {[%clk 0:01:08]} 19. a3 {[%clk 0:01:48]}  Rh8 {[%clk 0:01:07]} 20. Kf2 {[%clk 0:01:48]}  Qb6 {[%clk 0:00:45]} 21. axb4 {[%clk 0:01:47]}  cxb4 {[%clk 0:00:46]} 22. Kg2 {[%clk 0:01:42]}  Nc5 {[%clk 0:00:43]} 23. Nd4 {[%clk 0:01:30]}  a5 {[%clk 0:00:40]} 24. c3 {[%clk 0:01:23]}  b3 {[%clk 0:00:33]} 25. Bf2 {[%clk 0:01:19]}  a4 {[%clk 0:00:32]} 26. Ne2 {[%clk 0:01:02]}  Bc6 {[%clk 0:00:20]} 27. Ng3 {[%clk 0:01:00]}  Kb8 {[%clk 0:00:19]} 28. e4 {[%clk 0:00:59]}  dxe4 {[%clk 0:00:18]} 29. Nxe4 {[%clk 0:00:59]}  Bxe4 {[%clk 0:00:08]} 30. Qe2 {[%clk 0:00:37]}  Qb7 {[%clk 0:00:06]} 31. Bxc5 {[%clk 0:00:34]}  Bxf3+ {[%clk 0:00:06]} 32. Qxf3 {[%clk 0:00:35]}  Rh2+ {[%clk 0:00:05]} 0-1


[Site "https://www.chess.com"]

[Event "Titled Tuesday Blitz December 27 Early 2022"]
[White "Dilmukhametov, Artur"]
[Black "Adel, Sara"]
[WhiteFideId "24179922"]
[BlackFideId "10616764"]
[WhiteElo "2276"]
[BlackElo "1739"]
[Result "0-1"]
[Round "09"]
[TimeControl "180+2"]
[Date "2022.12.27"]
[WhiteClock "0:01:21"]
[BlackClock "0:01:52"]

1. d4 {[%clk 0:03:00]}  Nf6 {[%clk 0:02:59]} 2. Nc3 {[%clk 0:02:59]}  g6 {[%clk 0:02:59]} 3. Bf4 {[%clk 0:02:58]}  Bg7 {[%clk 0:02:59]} 4. e4 {[%clk 0:02:55]}  d6 {[%clk 0:02:59]} 5. Nf3 {[%clk 0:02:54]}  Nbd7 {[%clk 0:02:59]} 6. e5 {[%clk 0:02:40]}  Nh5 {[%clk 0:02:38]} 7. Qd2 {[%clk 0:02:28]}  Nxf4 {[%clk 0:02:37]} 8. Qxf4 {[%clk 0:02:28]}  dxe5 {[%clk 0:02:37]} 9. dxe5 {[%clk 0:02:26]}  O-O {[%clk 0:02:30]} 10. O-O-O {[%clk 0:02:19]}  c6 {[%clk 0:02:28]} 11. Bd3 {[%clk 0:02:16]}  Qa5 {[%clk 0:02:24]} 12. Rde1 {[%clk 0:02:08]}  Nc5 {[%clk 0:02:22]} 13. Bc4 {[%clk 0:01:57]}  b5 {[%clk 0:02:19]} 14. Qd4 {[%clk 0:01:28]}  bxc4 {[%clk 0:02:15]} 15. h4 {[%clk 0:01:24]}  Bh6+ {[%clk 0:01:54]} 16. Kb1 {[%clk 0:01:23]}  Rd8 {[%clk 0:01:52]} 17. Qg4 {[%clk 0:01:21]}  Bxg4 {[%clk 0:01:52]} 0-1


[Site "https://www.chess.com"]

[Event "Titled Tuesday Blitz December 27 Early 2022"]
[White "Fabris, Alberto"]
[Black "Garcia Almaguer, Juan Manuel"]
[WhiteFideId "801348"]
[BlackFideId "5110491"]
[WhiteElo "2230"]
[BlackElo "2090"]
[Result "0-1"]
[Round "09"]
[TimeControl "180+2"]
[Date "2022.12.27"]
[WhiteClock "0:00:01"]
[BlackClock "0:00:09"]

1. d4 {[%clk 0:02:59]}  Nf6 {[%clk 0:02:47]} 2. Nf3 {[%clk 0:02:57]}  e6 {[%clk 0:02:43]} 3. Bf4 {[%clk 0:02:56]}  Nd5 {[%clk 0:02:41]} 4. Bd2 {[%clk 0:02:55]}  c5 {[%clk 0:02:37]} 5. e4 {[%clk 0:02:53]}  Nf6 {[%clk 0:02:36]} 6. Bd3 {[%clk 0:02:47]}  cxd4 {[%clk 0:02:36]} 7. Nxd4 {[%clk 0:02:46]}  d6 {[%clk 0:02:33]} 8. O-O {[%clk 0:02:45]}  Nc6 {[%clk 0:01:25]} 9. Be3 {[%clk 0:02:38]}  Be7 {[%clk 0:01:24]} 10. c4 {[%clk 0:02:36]}  e5 {[%clk 0:01:19]} 11. Nf5 {[%clk 0:02:21]}  Bxf5 {[%clk 0:01:12]} 12. exf5 {[%clk 0:02:22]}  Rc8 {[%clk 0:00:46]} 13. Nc3 {[%clk 0:02:15]}  g6 {[%clk 0:00:45]} 14. b3 {[%clk 0:02:09]}  Qd7 {[%clk 0:00:37]} 15. fxg6 {[%clk 0:01:56]}  hxg6 {[%clk 0:00:35]} 16. Nd5 {[%clk 0:01:26]}  Ng4 {[%clk 0:00:31]} 17. h3 {[%clk 0:01:25]}  Nxe3 {[%clk 0:00:25]} 18. fxe3 {[%clk 0:01:25]}  f5 {[%clk 0:00:25]} 19. Qe1 {[%clk 0:01:17]}  Kf7 {[%clk 0:00:13]} 20. Qf2 {[%clk 0:01:12]}  Rh5 {[%clk 0:00:13]} 21. Rad1 {[%clk 0:01:05]}  Rch8 {[%clk 0:00:14]} 22. Be2 {[%clk 0:01:00]}  Bh4 {[%clk 0:00:13]} 23. g3 {[%clk 0:00:48]}  Rg5 {[%clk 0:00:14]} 24. Bg4 {[%clk 0:00:35]}  Bxg3 {[%clk 0:00:08]} 25. Qxg3 {[%clk 0:00:35]}  Kg7 {[%clk 0:00:09]} 26. Rf2 {[%clk 0:00:20]}  fxg4 {[%clk 0:00:08]} 27. h4 {[%clk 0:00:20]}  Rf5 {[%clk 0:00:08]} 28. Rdf1 {[%clk 0:00:18]}  Kh7 {[%clk 0:00:04]} 29. Rxf5 {[%clk 0:00:16]}  gxf5 {[%clk 0:00:05]} 30. h5 {[%clk 0:00:16]}  Rf8 {[%clk 0:00:05]} 31. Qh4 {[%clk 0:00:16]}  Qg7 {[%clk 0:00:05]} 32. Kh1 {[%clk 0:00:15]}  Nd8 {[%clk 0:00:05]} 33. Rg1 {[%clk 0:00:13]}  Ne6 {[%clk 0:00:05]} 34. Ne7 {[%clk 0:00:11]}  Qg5 {[%clk 0:00:04]} 35. Qxg5 {[%clk 0:00:10]}  Nxg5 {[%clk 0:00:05]} 36. Rd1 {[%clk 0:00:07]}  Rf6 {[%clk 0:00:05]} 37. Nc8 {[%clk 0:00:06]}  Rh6 {[%clk 0:00:05]} 38. Nxd6 {[%clk 0:00:06]}  Rxh5+ {[%clk 0:00:06]} 39. Kg2 {[%clk 0:00:06]}  Nf3 {[%clk 0:00:06]} 40. Nxf5 {[%clk 0:00:04]}  Rxf5 {[%clk 0:00:06]} 41. Kg3 {[%clk 0:00:05]}  Kg6 {[%clk 0:00:07]} 42. Kxg4 {[%clk 0:00:04]}  Ng5 {[%clk 0:00:06]} 43. Rd6+ {[%clk 0:00:04]}  Rf6 {[%clk 0:00:07]} 44. Rxf6+ {[%clk 0:00:03]}  Kxf6 {[%clk 0:00:08]} 45. b4 {[%clk 0:00:02]}  Ne4 {[%clk 0:00:08]} 46. c5 {[%clk 0:00:02]}  Nd2 {[%clk 0:00:09]} 47. Kg3 {[%clk 0:00:01]}  Kf5 {[%clk 0:00:09]} 0-1


[Site "https://www.chess.com"]

[Event "Titled Tuesday Blitz December 27 Early 2022"]
[White "Fernandez Garcia, Gumersindo"]
[Black "Sovetov, Oleksandr"]
[WhiteFideId "24516740"]
[BlackFideId "34105786"]
[WhiteElo "2160"]
[BlackElo "1976"]
[Result "0-1"]
[Round "09"]
[TimeControl "180+2"]
[Date "2022.12.27"]
[WhiteClock "0:00:20"]
[BlackClock "0:01:03"]

1. e4 {[%clk 0:03:00]}  c5 {[%clk 0:02:58]} 2. Nf3 {[%clk 0:03:00]}  Nc6 {[%clk 0:02:57]} 3. c3 {[%clk 0:03:00]}  d5 {[%clk 0:02:57]} 4. exd5 {[%clk 0:03:00]}  Qxd5 {[%clk 0:02:58]} 5. d4 {[%clk 0:03:00]}  Nf6 {[%clk 0:02:51]} 6. Be2 {[%clk 0:02:58]}  e6 {[%clk 0:02:50]} 7. O-O {[%clk 0:02:58]}  Be7 {[%clk 0:02:47]} 8. Be3 {[%clk 0:02:57]}  Ng4 {[%clk 0:02:42]} 9. Bf4 {[%clk 0:02:52]}  O-O {[%clk 0:02:40]} 10. h3 {[%clk 0:02:44]}  Nf6 {[%clk 0:02:39]} 11. c4 {[%clk 0:02:27]}  Qf5 {[%clk 0:02:36]} 12. Be3 {[%clk 0:02:27]}  cxd4 {[%clk 0:02:32]} 13. Nxd4 {[%clk 0:02:25]}  Nxd4 {[%clk 0:02:32]} 14. Qxd4 {[%clk 0:02:20]}  Rd8 {[%clk 0:02:31]} 15. Qc3 {[%clk 0:02:12]}  Ne4 {[%clk 0:02:27]} 16. Qc2 {[%clk 0:02:09]}  Ng3 {[%clk 0:02:21]} 17. Bd1 {[%clk 0:01:18]}  Nxf1 {[%clk 0:02:13]} 18. Kxf1 {[%clk 0:01:18]}  b6 {[%clk 0:02:04]} 19. Nc3 {[%clk 0:01:10]}  Qxc2 {[%clk 0:01:59]} 20. Bxc2 {[%clk 0:01:11]}  Ba6 {[%clk 0:01:59]} 21. b3 {[%clk 0:01:09]}  Bf6 {[%clk 0:01:58]} 22. Be4 {[%clk 0:00:51]}  Bxc3 {[%clk 0:01:57]} 23. Rc1 {[%clk 0:00:51]}  Bb2 {[%clk 0:01:48]} 24. Rc2 {[%clk 0:00:50]}  Bf6 {[%clk 0:01:40]} 25. Bxa8 {[%clk 0:00:48]}  Rxa8 {[%clk 0:01:40]} 26. g4 {[%clk 0:00:46]}  Rd8 {[%clk 0:01:38]} 27. Ke2 {[%clk 0:00:46]}  Be7 {[%clk 0:01:36]} 28. f4 {[%clk 0:00:39]}  Kf8 {[%clk 0:01:35]} 29. a4 {[%clk 0:00:37]}  Bb4 {[%clk 0:01:32]} 30. Kf3 {[%clk 0:00:35]}  Bb7+ {[%clk 0:01:32]} 31. Kf2 {[%clk 0:00:35]}  Be4 {[%clk 0:01:33]} 32. Re2 {[%clk 0:00:34]}  Bd3 {[%clk 0:01:29]} 33. Rb2 {[%clk 0:00:34]}  Bc3 {[%clk 0:01:22]} 34. Ra2 {[%clk 0:00:33]}  Bb1 {[%clk 0:01:22]} 35. Re2 {[%clk 0:00:33]}  Rd1 {[%clk 0:01:17]} 36. Kg3 {[%clk 0:00:28]}  Bd3 {[%clk 0:01:14]} 37. Ra2 {[%clk 0:00:26]}  Bb4 {[%clk 0:01:12]} 38. Kf2 {[%clk 0:00:25]}  Rb1 {[%clk 0:01:10]} 39. a5 {[%clk 0:00:20]}  Bxa5 {[%clk 0:01:09]} 40. c5 {[%clk 0:00:21]}  Rxb3 {[%clk 0:01:07]} 41. cxb6 {[%clk 0:00:19]}  axb6 {[%clk 0:01:04]} 42. Bxb6 {[%clk 0:00:20]}  Bxb6+ {[%clk 0:01:03]} 0-1


[Site "https://www.chess.com"]